fUSD/lending_fUSD_20241101
["ID","MTS","AMOUNT","RATE_DAILY","PERIOD"]
[341144780,1730471459337,-1396.84,0.00042739,3]
[341144781,1730471459346,-643.15,0.00042739,3]
[341144782,1730471459355,-180.0,0.00042787,120]
[341144783,1730471459365,-3177.61128356,0.000428,60]
[341144784,1730471459374,-32263.26012166,0.000428,2]
[341144785,1730471459383,-500.0,0.00042821,33]
[341144786,1730471459392,-265.167348,0.0004283,14]
[341144787,1730471459402,-265.167356,0.0004283,14]
[341144788,1730471459412,-182.59,0.00042885,2]
[341144789,1730471459422,-569.15,0.00042898,2]
[341144790,1730471459431,-793.45,0.00042899,3]
[341144791,1730471459440,-290.86783284,0.000429,30]
[341144792,1730471459509,-13100.0,0.000429,15]
[341144793,1730471459520,-388.30314511,0.000429,60]
[341144794,1730471459529,-500.0,0.00042929,3]
[341144795,1730471459539,-793.45,0.00042929,3]
[341144796,1730471459548,-1269.63,0.00042929,3]
[341144797,1730471459557,-237856.31864442,0.0004293,45]
[341144798,1730471459567,-151.0,0.0004293,14]
[341144799,1730471459576,-238.387845,0.0004293,14]
[341144800,1730471459586,-238.387845,0.0004293,14]
[341144801,1730471459595,-500.0,0.00042946,3]
[341144802,1730471459605,-500.0,0.00042946,3]
[341144803,1730471459618,-500.0,0.00042946,3]
[341144804,1730471459627,-500.0,0.00042946,3]
[341144805,1730471459637,-500.0,0.00042946,3]
[341144806,1730471459646,-170.0,0.00042946,3]
[341144807,1730471459656,-592.95,0.00042946,3]
[341144808,1730471459666,-980.67,0.00042946,3]
[341144809,1730471459675,-500.0,0.00042946,3]
[341144810,1730471459686,-1167.89,0.00042946,3]
[341144811,1730471459695,-1204.55,0.00042946,3]
[341144812,1730471459705,-500.0,0.00042946,3]
[341144813,1730471459714,-500.0,0.00042946,3]
[341144814,1730471459723,-500.0,0.00042946,3]
[341144815,1730471459734,-500.0,0.00042946,3]
[341144816,1730471459744,-704.73,0.00042946,3]
[341144817,1730471459753,-829.99,0.00042946,3]
[341144818,1730471459763,-2220.69,0.00042946,3]
[341144819,1730471459773,-500.0,0.00042946,3]
[341144820,1730471459783,-500.0,0.00042946,3]
[341144821,1730471459793,-1235.62,0.00042946,3]
[341144822,1730471459803,-500.0,0.00042946,3]
[341144823,1730471459812,-500.0,0.00042946,3]
[341144824,1730471459821,-500.0,0.00042946,3]
[341144825,1730471459830,-500.0,0.00042946,3]
[341144826,1730471459839,-720.99,0.00042946,3]
[341144827,1730471459849,-510.44,0.00042946,3]
[341144828,1730471459858,-500.0,0.00042946,3]
[341144829,1730471459867,-500.0,0.00042946,3]
[341144830,1730471459876,-500.0,0.00042946,3]
[341144831,1730471459886,-500.0,0.00042946,3]
[341144832,1730471459894,-500.0,0.00042946,3]
[341144833,1730471459904,-517.70645443,0.00042946,3]
[341144834,1730471459915,-500.0,0.00042946,3]
[341144835,1730471459924,-500.0,0.00042946,3]
[341144836,1730471459934,-500.0,0.00042946,3]
[341144837,1730471459943,-698.55,0.00042946,3]
[341144838,1730471459953,-585.2,0.00042946,3]
[341144839,1730471459962,-500.0,0.00042946,3]
[341144840,1730471459972,-500.0,0.00042946,3]
[341144841,1730471459983,-1010.74,0.00042946,3]
[341144842,1730471459993,-869.04,0.00042946,3]
[341144843,1730471460002,-793.5,0.00042946,3]
[341144844,1730471460023,-500.0,0.00042946,3]
[341144845,1730471460039,-500.0,0.00042946,3]
[341144846,1730471460056,-500.0,0.00042946,3]
[341144847,1730471460076,-866.45,0.00042946,3]
[341144848,1730471460093,-500.0,0.00042946,3]
[341144849,1730471460110,-2701.97,0.00042946,3]
[341144850,1730471460128,-1537.58,0.00042946,3]
[341144851,1730471460143,-500.0,0.00042946,3]
[341144852,1730471460159,-500.0,0.00042946,3]
[341144853,1730471460178,-500.0,0.00042946,3]
[341144854,1730471460196,-540.05372923,0.00042946,3]
[341144855,1730471460208,-500.0,0.00042946,3]
[341144856,1730471460227,-500.0,0.00042946,3]
[341144857,1730471460246,-707.82,0.00042946,3]
[341144858,1730471460263,-578.08,0.00042946,3]
[341144859,1730471460276,-763.2,0.00042946,3]
[341144860,1730471460292,-500.0,0.00042946,3]
[341144861,1730471460308,-2156.77,0.00042946,3]
[341144862,1730471460323,-500.0,0.00042946,3]
[341144863,1730471460338,-500.0,0.00042946,3]
[341144864,1730471460353,-500.0,0.00042946,3]
[341144865,1730471460369,-500.0,0.00042946,3]
[341144866,1730471460383,-724.5,0.00042946,3]
[341144867,1730471460399,-521.67,0.00042946,3]
[341144868,1730471460415,-575.99,0.00042946,3]
[341144869,1730471460431,-500.0,0.00042946,3]
[341144870,1730471460446,-887.42,0.00042946,3]
[341144871,1730471460461,-500.0,0.00042947,3]
[341144872,1730471460477,-500.0,0.00042947,3]
[341144873,1730471460493,-500.0,0.00042947,3]
[341144874,1730471460509,-500.0,0.00042947,3]
[341144875,1730471460523,-500.0,0.00042947,3]
[341144876,1730471460538,-635.21,0.00042947,3]
[341144877,1730471460554,-500.0,0.00042947,3]
[341144878,1730471460568,-500.0,0.00042947,3]
[341144879,1730471460581,-1004.85,0.00042947,3]
[341144880,1730471460596,-500.0,0.00042947,3]
[341144881,1730471460613,-500.0,0.00042947,3]
[341144882,1730471460630,-500.0,0.00042947,3]
[341144883,1730471460645,-500.0,0.00042947,3]
[341144884,1730471460660,-500.0,0.00042947,3]
[341144885,1730471460674,-500.0,0.00042947,3]
[341144886,1730471460688,-500.0,0.00042947,3]
[341144887,1730471460704,-500.0,0.00042947,3]
[341144888,1730471460718,-500.0,0.00042947,3]
[341144889,1730471460734,-500.0,0.00042947,3]
[341144890,1730471460749,-500.0,0.00042947,3]
[341144891,1730471460763,-500.0,0.00042947,3]
[341144892,1730471460866,-500.0,0.00042947,3]
[341144893,1730471460876,-616.44,0.00042947,3]
[341144894,1730471460886,-862.89,0.00042947,3]
[341144895,1730471460895,-500.0,0.00042947,3]
[341144896,1730471460905,-500.0,0.00042947,3]
[341144897,1730471460915,-248.25,0.00042947,3]
[341144898,1730471460925,-500.0,0.00042947,3]
[341144899,1730471460935,-500.0,0.00042947,3]
[341144900,1730471460946,-673.59,0.00042947,3]
[341144901,1730471460958,-500.0,0.00042947,3]
[341144902,1730471460967,-500.0,0.00042947,3]
[341144903,1730471460977,-500.0,0.00042947,3]
[341144904,1730471460988,-500.0,0.00042947,3]
[341144905,1730471460997,-500.0,0.00042947,3]
[341144906,1730471461007,-500.0,0.00042947,3]
[341144907,1730471461016,-748.13,0.00042947,3]
[341144908,1730471461025,-500.0,0.00042947,3]
[341144909,1730471461035,-720.09,0.00042947,3]
[341144910,1730471461044,-500.0,0.00042947,3]
[341144911,1730471461054,-561.89,0.00042947,3]
[341144912,1730471461063,-500.0,0.00042947,3]
[341144913,1730471461072,-625.0,0.00042947,3]
[341144914,1730471461082,-500.0,0.00042947,3]
[341144915,1730471461092,-500.0,0.00042947,3]
[341144916,1730471461101,-500.0,0.00042947,3]
[341144917,1730471461111,-500.0,0.00042947,3]
[341144918,1730471461120,-500.0,0.00042947,3]
[341144919,1730471461129,-500.0,0.00042947,3]
[341144920,1730471461139,-1105.92,0.00042947,3]
[341144921,1730471461148,-500.0,0.00042947,3]
[341144922,1730471461158,-500.0,0.00042947,3]
[341144923,1730471461167,-500.0,0.00042947,3]
[341144924,1730471461176,-500.0,0.00042947,3]
[341144925,1730471461186,-566.79,0.00042947,3]
[341144926,1730471461195,-500.0,0.00042947,3]
[341144927,1730471461205,-500.0,0.00042947,3]
[341144928,1730471461215,-687.47,0.00042947,3]
[341144929,1730471461224,-500.0,0.00042947,3]
[341144930,1730471461236,-1413.29,0.00042947,3]
[341144931,1730471461245,-500.0,0.00042947,3]
[341144932,1730471461254,-374.13166337,0.00042947,3]
[341144933,1730471461263,-2357.59,0.00042947,3]
[341144934,1730471461272,-500.0,0.00042947,3]
[341144935,1730471461282,-2218.01,0.00042947,3]
[341144936,1730471461291,-1643.51,0.00042947,3]
[341144937,1730471461301,-500.0,0.00042947,3]
[341144938,1730471461311,-500.0,0.00042947,3]
[341144939,1730471461320,-507.05,0.00042947,3]
[341144940,1730471461329,-500.0,0.00042947,3]
[341144941,1730471461338,-605.62,0.00042947,3]
[341144942,1730471461347,-500.0,0.00042947,3]
[341144943,1730471461357,-713.19,0.00042947,3]
[341144944,1730471461367,-500.0,0.00042947,3]
[341144945,1730471461377,-610.51206386,0.00042947,3]
[341144946,1730471461386,-500.0,0.00042947,3]
[341144947,1730471461395,-500.0,0.00042947,3]
[341144948,1730471461405,-500.0,0.00042947,3]
[341144949,1730471461414,-500.0,0.00042947,3]
[341144950,1730471461424,-581.21426553,0.00042947,3]
[341144951,1730471461433,-500.0,0.00042947,3]
[341144952,1730471461442,-500.0,0.00042947,3]
[341144953,1730471461452,-500.0,0.00042947,3]
[341144954,1730471461461,-500.0,0.00042947,3]
[341144955,1730471461471,-500.0,0.00042947,3]
[341144956,1730471461480,-500.0,0.00042947,3]
[341144957,1730471461490,-500.0,0.00042947,3]
[341144958,1730471461499,-1168.08,0.00042947,3]
[341144959,1730471461509,-500.0,0.00042947,3]
[341144960,1730471461518,-500.0,0.00042947,3]
[341144961,1730471461528,-590.92,0.00042947,3]
[341144962,1730471461538,-500.0,0.00042947,3]
[341144963,1730471461548,-500.0,0.00042947,3]
[341144964,1730471461557,-1548.21,0.00042947,3]
[341144965,1730471461566,-500.0,0.00042947,3]
[341144966,1730471461576,-500.0,0.00042947,3]
[341144967,1730471461585,-500.0,0.00042947,3]
[341144968,1730471461595,-500.0,0.00042947,3]
[341144969,1730471461604,-500.0,0.00042947,3]
[341144970,1730471461616,-500.0,0.00042947,3]
[341144971,1730471461625,-500.0,0.00042947,3]
[341144972,1730471461634,-514.26412791,0.00042947,3]
[341144973,1730471461643,-500.0,0.00042947,3]
[341144974,1730471461653,-500.0,0.00042947,3]
[341144975,1730471461663,-500.0,0.00042947,3]
[341144976,1730471461672,-500.0,0.00042947,3]
[341144977,1730471461682,-500.0,0.00042947,3]
[341144978,1730471461693,-500.0,0.00042947,3]
[341144979,1730471461703,-500.0,0.00042947,3]
[341144980,1730471461712,-500.0,0.00042947,3]
[341144981,1730471461722,-500.0,0.00042947,3]
[341144982,1730471461732,-500.0,0.00042947,3]
[341144983,1730471461742,-500.0,0.00042947,3]
[341144984,1730471461751,-500.0,0.00042947,3]
[341144985,1730471461760,-500.0,0.00042947,3]
[341144986,1730471461770,-500.0,0.00042947,3]
[341144987,1730471461780,-518.47143514,0.00042947,3]
[341144988,1730471461789,-523.05462338,0.00042947,3]
[341144989,1730471461799,-500.0,0.00042947,3]
[341144990,1730471461808,-509.95,0.00042947,3]
[341144991,1730471461817,-500.0,0.00042948,3]
[341144992,1730471461827,-500.0,0.00042948,3]
[341144993,1730471461836,-151.0,0.00042948,14]
[341144994,1730471461846,-238.387845,0.00042948,14]
[341144995,1730471461855,-238.387837,0.00042948,14]
[341144996,1730471461865,-1165.6480876,0.00042971,2]
[341144997,1730471461875,-2751.2482395,0.00042971,2]
[341144998,1730471461885,-376.43,0.00042999,3]
[341144999,1730471461894,-793.45,0.00042999,3]
[341145000,1730471461904,-793.45,0.00042999,3]
[341145001,1730471461913,-793.45,0.00042999,3]
[341145002,1730471461923,-1269.63,0.00042999,3]
[341145003,1730471461932,-1269.63,0.00042999,3]
[341145004,1730471461942,-1269.63,0.00042999,3]
[341145005,1730471461952,-608560.18,0.00043,45]
[341145006,1730471461961,-212.39810828,0.00043,45]
[341145007,1730471461970,-1000.0,0.00043,30]
[341145008,1730471461980,-590.3679,0.00043,30]
[341145009,1730471461989,-2000.0,0.00043,30]
[341145010,1730471461998,-2000.0,0.00043,30]
[341145011,1730471462007,-34683.97,0.00043,45]
[341145012,1730471462017,-498.23,0.00043,2]
[341145013,1730471462026,-939.75,0.00043,60]
[341145014,1730471462036,-234.18099984,0.00043,120]
[341145015,1730471462046,-630.40955245,0.00043,120]
[341145016,1730471462057,-478.00805549,0.00043,3]
[341145017,1730471462066,-551.00829718,0.00043,2]
[341145018,1730471462076,-541.24,0.00043,3]
[341145019,1730471462085,-1259.39,0.00043,3]
[341145020,1730471462094,-767.65,0.00043,3]
[341145021,1730471462170,-567.94,0.00043,3]
[341145022,1730471462179,-500.0,0.00043,3]
[341145023,1730471462188,-514.96,0.00043,3]
[341145024,1730471462197,-304.58146117,0.00043001,3]
[341145025,1730471462207,-2578.28,0.00043001,3]
[341145026,1730471462216,-500.0,0.00043001,3]
[341145027,1730471462226,-577.06,0.00043001,3]
[341145028,1730471462238,-554.44,0.00043001,3]
[341145029,1730471462250,-968.7,0.00043001,3]
[341145030,1730471462260,-798.52,0.00043001,3]
[341145031,1730471462269,-861.33,0.00043001,3]
[341145032,1730471462279,-500.0,0.00043001,3]
[341145033,1730471462288,-1279.53,0.00043001,3]
[341145034,1730471462298,-500.0,0.00043001,3]
[341145035,1730471462307,-500.0,0.00043001,3]
[341145036,1730471462317,-1278.47,0.00043001,3]
[341145037,1730471462326,-1036.41,0.00043001,3]
[341145038,1730471462335,-188.34428614,0.00043007,30]
[341145039,1730471462344,-159.62,0.00043007,2]
[341145040,1730471462354,-500.0,0.00043009,3]
[341145041,1730471462363,-500.0,0.00043013,3]
[341145042,1730471462372,-196.41504468,0.00043013,3]
[341145043,1730471462382,-880.0,0.00043013,3]
[341145044,1730471462391,-250.0,0.00043013,3]
[341145045,1730471462400,-500.0,0.00043013,3]
[341145046,1730471462410,-424.0,0.00043013,3]
[341145047,1730471462420,-500.0,0.00043013,3]
[341145048,1730471462429,-2376.25,0.00043013,3]
[341145049,1730471462439,-500.0,0.00043013,3]
[341145050,1730471462448,-500.0,0.00043013,3]
[341145051,1730471462458,-500.0,0.00043013,3]
[341145052,1730471462468,-1001.26,0.00043013,3]
[341145053,1730471462477,-886.16,0.00043013,3]
[341145054,1730471462488,-500.0,0.00043013,3]
[341145055,1730471462497,-500.0,0.00043013,3]
[341145056,1730471462507,-1396.84,0.00043013,3]
[341145057,1730471462516,-643.15,0.00043013,3]
[341145058,1730471462525,-97662.0,0.00043028,10]
[341145059,1730471462535,-629.0,0.00043039,2]
[341145060,1730471462544,-500.0,0.00043095,34]
[341145061,1730471462554,-273.1,0.00043151,2]
[341145062,1730471462563,-168.91027855,0.00043191,28]
[341145063,1730471462573,-990.25698548,0.0004321,7]
[341145064,1730471462583,-500.0,0.0004322,3]
[341145065,1730471462592,-500.0,0.0004322,3]
[341145066,1730471462601,-500.0,0.0004322,3]
[341145067,1730471462611,-500.0,0.0004322,3]
[341145068,1730471462624,-500.0,0.0004322,3]
[341145069,1730471462634,-170.0,0.0004322,3]
[341145070,1730471462643,-592.95,0.0004322,3]
[341145071,1730471462655,-980.67,0.0004322,3]
[341145072,1730471462664,-500.0,0.0004322,3]
[341145073,1730471462674,-1167.89,0.0004322,3]
[341145074,1730471462683,-1204.55,0.0004322,3]
[341145075,1730471462694,-500.0,0.0004322,3]
[341145076,1730471462703,-500.0,0.0004322,3]
[341145077,1730471462713,-500.0,0.0004322,3]
[341145078,1730471462723,-500.0,0.0004322,3]
[341145079,1730471462734,-704.73,0.0004322,3]
[341145080,1730471462743,-829.99,0.0004322,3]
[341145081,1730471462752,-2220.69,0.0004322,3]
[341145082,1730471462762,-500.0,0.0004322,3]
[341145083,1730471462771,-500.0,0.0004322,3]
[341145084,1730471462780,-1235.62,0.0004322,3]
[341145085,1730471462790,-500.0,0.0004322,3]
[341145086,1730471462799,-500.0,0.0004322,3]
[341145087,1730471462808,-500.0,0.0004322,3]
[341145088,1730471462817,-500.0,0.0004322,3]
[341145089,1730471462827,-720.99,0.0004322,3]
[341145090,1730471462836,-510.44,0.0004322,3]
[341145091,1730471462845,-500.0,0.0004322,3]
[341145092,1730471462855,-500.0,0.0004322,3]
[341145093,1730471462864,-500.0,0.0004322,3]
[341145094,1730471462874,-500.0,0.0004322,3]
[341145095,1730471462883,-500.0,0.0004322,3]
[341145096,1730471462892,-500.0,0.0004322,3]
[341145097,1730471462901,-500.0,0.0004322,3]
[341145098,1730471462911,-500.0,0.0004322,3]
[341145099,1730471462920,-698.55,0.0004322,3]
[341145100,1730471462929,-585.2,0.0004322,3]
[341145101,1730471462939,-500.0,0.0004322,3]
[341145102,1730471462948,-500.0,0.0004322,3]
[341145103,1730471462957,-1010.74,0.0004322,3]
[341145104,1730471462967,-869.04,0.0004322,3]
[341145105,1730471462976,-793.5,0.0004322,3]
[341145106,1730471462987,-500.0,0.0004322,3]
[341145107,1730471462996,-500.0,0.0004322,3]
[341145108,1730471463005,-500.0,0.0004322,3]
[341145109,1730471463015,-866.45,0.0004322,3]
[341145110,1730471463024,-500.0,0.0004322,3]
[341145111,1730471463034,-2701.97,0.0004322,3]
[341145112,1730471463044,-1537.58,0.0004322,3]
[341145113,1730471463053,-500.0,0.0004322,3]
[341145114,1730471463063,-500.0,0.0004322,3]
[341145115,1730471463073,-500.0,0.0004322,3]
[341145116,1730471463082,-500.0,0.0004322,3]
[341145117,1730471463091,-500.0,0.0004322,3]
[341145118,1730471463101,-707.82,0.0004322,3]
[341145119,1730471463111,-578.08,0.0004322,3]
[341145120,1730471463120,-763.2,0.0004322,3]
[341145121,1730471463129,-421.22166746,0.0004322,3]
[341145122,1730471463139,-2156.77,0.0004322,3]
[341145123,1730471463149,-500.0,0.0004322,3]
[341145124,1730471463158,-500.0,0.0004322,3]
[341145125,1730471463168,-500.0,0.0004322,3]
[341145126,1730471463178,-500.0,0.0004322,3]
[341145127,1730471463187,-724.5,0.0004322,3]
[341145128,1730471463196,-521.67,0.0004322,3]
[341145129,1730471463207,-575.99,0.0004322,3]
[341145130,1730471463217,-500.0,0.0004322,3]
[341145131,1730471463227,-887.42,0.0004322,3]
[341145132,1730471463239,-500.0,0.00043221,3]
[341145133,1730471463248,-500.0,0.00043221,3]
[341145134,1730471463258,-500.0,0.00043221,3]
[341145135,1730471463267,-500.0,0.00043221,3]
[341145136,1730471463277,-635.21,0.00043221,3]
[341145137,1730471463286,-500.0,0.00043221,3]
[341145138,1730471463295,-500.0,0.00043221,3]
[341145139,1730471463367,-1004.85,0.00043221,3]
[341145140,1730471463385,-500.0,0.00043221,3]
[341145141,1730471463395,-555.72781831,0.00043221,3]
[341145142,1730471463404,-500.0,0.00043221,3]
[341145143,1730471463414,-500.0,0.00043221,3]
[341145144,1730471463424,-260.3597905,0.00043221,3]
[341145145,1730471463433,-500.0,0.00043221,3]
[341145146,1730471463444,-500.0,0.00043221,3]
[341145147,1730471463455,-500.0,0.00043221,3]
[341145148,1730471463465,-207.32360103,0.00043221,3]
[341145149,1730471463475,-500.0,0.00043221,3]
[341145150,1730471463486,-500.0,0.00043221,3]
[341145151,1730471463496,-500.0,0.00043221,3]
[341145152,1730471463506,-500.0,0.00043221,3]
[341145153,1730471463517,-616.44,0.00043221,3]
[341145154,1730471463527,-862.89,0.00043221,3]
[341145155,1730471463537,-500.0,0.00043221,3]
[341145156,1730471463546,-500.0,0.00043221,3]
[341145157,1730471463557,-500.0,0.00043221,3]
[341145158,1730471463568,-673.59,0.00043221,3]
[341145159,1730471463578,-500.0,0.00043221,3]
[341145160,1730471463587,-568.29151766,0.00043221,3]
[341145161,1730471463597,-500.0,0.00043221,3]
[341145162,1730471463607,-500.0,0.00043221,3]
[341145163,1730471463619,-500.0,0.00043221,3]
[341145164,1730471463629,-500.0,0.00043221,3]
[341145165,1730471463639,-748.13,0.00043221,3]
[341145166,1730471463649,-500.0,0.00043221,3]
[341145167,1730471463659,-720.09,0.00043221,3]
[341145168,1730471463670,-500.0,0.00043221,3]
[341145169,1730471463680,-561.89,0.00043221,3]
[341145170,1730471463689,-500.0,0.00043221,3]
[341145171,1730471463700,-625.0,0.00043221,3]
[341145172,1730471463710,-500.0,0.00043221,3]
[341145173,1730471463719,-500.0,0.00043221,3]
[341145174,1730471463730,-500.0,0.00043221,3]
[341145175,1730471463739,-500.0,0.00043221,3]
[341145176,1730471463749,-500.0,0.00043221,3]
[341145177,1730471463759,-500.0,0.00043221,3]
[341145178,1730471463769,-1105.92,0.00043221,3]
[341145179,1730471463779,-500.0,0.00043221,3]
[341145180,1730471463788,-500.0,0.00043221,3]
[341145181,1730471463798,-500.0,0.00043221,3]
[341145182,1730471463808,-500.0,0.00043221,3]
[341145183,1730471463817,-566.79,0.00043221,3]
[341145184,1730471463827,-500.0,0.00043221,3]
[341145185,1730471463836,-500.0,0.00043221,3]
[341145186,1730471463846,-687.47,0.00043221,3]
[341145187,1730471463856,-500.0,0.00043221,3]
[341145188,1730471463866,-1413.29,0.00043221,3]
[341145189,1730471463875,-500.0,0.00043221,3]
[341145190,1730471463885,-2357.59,0.00043221,3]
[341145191,1730471463894,-386.66735937,0.00043221,3]
[341145192,1730471463904,-2218.01,0.00043221,3]
[341145193,1730471463914,-1643.51,0.00043221,3]
[341145194,1730471463924,-340.03583541,0.00043221,3]
[341145195,1730471463934,-500.0,0.00043221,3]
[341145196,1730471463943,-507.05,0.00043221,3]
[341145197,1730471463952,-500.0,0.00043221,3]
[341145198,1730471463961,-605.62,0.00043221,3]
[341145199,1730471463971,-500.0,0.00043221,3]
[341145200,1730471463981,-713.19,0.00043221,3]
[341145201,1730471463991,-500.0,0.00043221,3]
[341145202,1730471464000,-500.0,0.00043221,3]
[341145203,1730471464011,-500.0,0.00043221,3]
[341145204,1730471464021,-500.0,0.00043221,3]
[341145205,1730471464031,-500.0,0.00043221,3]
[341145206,1730471464041,-500.0,0.00043221,3]
[341145207,1730471464051,-500.0,0.00043221,3]
[341145208,1730471464061,-500.0,0.00043221,3]
[341145209,1730471464071,-500.0,0.00043221,3]
[341145210,1730471464080,-500.0,0.00043221,3]
[341145211,1730471464089,-197.91804687,0.00043221,3]
[341145212,1730471464099,-500.0,0.00043221,3]
[341145213,1730471464110,-1168.08,0.00043221,3]
[341145214,1730471464120,-500.0,0.00043221,3]
[341145215,1730471464129,-500.0,0.00043221,3]
[341145216,1730471464140,-590.92,0.00043221,3]
[341145217,1730471464149,-500.0,0.00043221,3]
[341145218,1730471464159,-500.0,0.00043221,3]
[341145219,1730471464169,-1548.21,0.00043221,3]
[341145220,1730471464180,-500.0,0.00043221,3]
[341145221,1730471464190,-500.0,0.00043221,3]
[341145222,1730471464199,-500.0,0.00043221,3]
[341145223,1730471464209,-500.0,0.00043221,3]
[341145224,1730471464219,-500.0,0.00043221,3]
[341145225,1730471464228,-500.0,0.00043221,3]
[341145226,1730471464239,-500.0,0.00043221,3]
[341145227,1730471464249,-500.0,0.00043221,3]
[341145228,1730471464258,-500.0,0.00043221,3]
[341145229,1730471464268,-297.80726741,0.00043221,3]
[341145230,1730471464278,-500.0,0.00043221,3]
[341145231,1730471464287,-500.0,0.00043221,3]
[341145232,1730471464297,-550.85614478,0.00043221,3]
[341145233,1730471464307,-500.0,0.00043221,3]
[341145234,1730471464317,-500.0,0.00043221,3]
[341145235,1730471464327,-500.0,0.00043221,3]
[341145236,1730471464337,-500.0,0.00043221,3]
[341145237,1730471464348,-500.0,0.00043221,3]
[341145238,1730471464358,-500.0,0.00043221,3]
[341145239,1730471464368,-500.0,0.00043221,3]
[341145240,1730471464377,-509.95,0.00043221,3]
[341145241,1730471464387,-500.0,0.00043222,3]
[341145242,1730471464397,-500.0,0.00043222,3]
[341145243,1730471464407,-541.24,0.00043274,3]
[341145244,1730471464424,-1259.39,0.00043274,3]
[341145245,1730471464434,-767.65,0.00043274,3]
[341145246,1730471464443,-567.94,0.00043274,3]
[341145247,1730471464452,-500.0,0.00043274,3]
[341145248,1730471464462,-514.96,0.00043274,3]
[341145249,1730471464538,-2578.28,0.00043275,3]
[341145250,1730471464548,-500.0,0.00043275,3]
[341145251,1730471464559,-577.06,0.00043275,3]
[341145252,1730471464569,-554.44,0.00043275,3]
[341145253,1730471464579,-968.7,0.00043275,3]
[341145254,1730471464590,-798.52,0.00043275,3]
[341145255,1730471464601,-861.33,0.00043275,3]
[341145256,1730471464611,-500.0,0.00043275,3]
[341145257,1730471464624,-1279.53,0.00043275,3]
[341145258,1730471464634,-500.0,0.00043275,3]
[341145259,1730471464644,-500.0,0.00043275,3]
[341145260,1730471464655,-1278.47,0.00043275,3]
[341145261,1730471464664,-1036.41,0.00043275,3]
[341145262,1730471464675,-500.0,0.00043283,3]
[341145263,1730471464685,-500.0,0.00043287,3]
[341145264,1730471464695,-880.0,0.00043287,3]
[341145265,1730471464707,-250.0,0.00043287,3]
[341145266,1730471464718,-500.0,0.00043287,3]
[341145267,1730471464727,-424.0,0.00043287,3]
[341145268,1730471464738,-500.0,0.00043287,3]
[341145269,1730471464748,-2376.25,0.00043287,3]
[341145270,1730471464758,-500.0,0.00043287,3]
[341145271,1730471464768,-500.0,0.00043287,3]
[341145272,1730471464777,-252.78029849,0.00043287,3]
[341145273,1730471464787,-1001.26,0.00043287,3]
[341145274,1730471464797,-886.16,0.00043287,3]
[341145275,1730471464806,-500.0,0.00043287,3]
[341145276,1730471464816,-500.0,0.00043287,3]
[341145277,1730471464825,-1396.84,0.00043287,3]
[341145278,1730471464835,-643.15,0.00043287,3]
[341145279,1730471464844,-1195.54339197,0.00043355,4]